Cogmind - Beta 12 @@@ ROGUE MODE // 2023.05.31 @ 12:56:49 Player: LustLizard Result: Destroyed by Y-72 Warden with Railgun Performance ------------- Evolutions (7) 3500 Regions Visited (17) 3400 Robots Destroyed (176) 880 Value Destroyed (6987) 6987 Prototype IDs (26) 520 Alien Tech Used (2) 400 Bonus (1134) 1134 TOTAL SCORE: 16821 Bonus ------- High Alert Combat Kills 396 Follower Combat Kills 174 Met Data Miner 300 Met Zhirov 300 Friendly Fire -36 Cogmind --------- Core Integrity 0/1300 Matter 137/300 Energy 48/100 System Corruption 7% Temperature Cool (0) Movement Core (1400) Ox27 Location -3/Research Parts ------- > --- POWER (2) -------- (None) > --- PROPULSION (7) --- (None) > --- UTILITY (9) ------ Huge Storage Unit Improved Dynamic Insulation System > --- WEAPON (3) ------- (None) > --- INVENTORY (25) --- Heavy Antimatter Reactor High-capacity Storage Unit Improved Matter Compressor (189) Improved Launcher Guidance Computer Advanced Target Analyzer Antimissile System Mass Driver Grenade Launcher Peak State ------------ > --- POWER ------------ Heavy Antimatter Reactor Particle Reactor > --- PROPULSION ------- Medium Treads Makeshift Leg Flexi-carbon Leg Flexi-carbon Leg Flexi-carbon Leg Myomer Leg Myomer Leg > --- UTILITY ---------- Advanced Heat Sink Advanced Heat Sink Advanced Heat Sink Huge Storage Unit Weapon Mount Improved Heavy Armor Plating Antimissile System Improved Dynamic Insulation System > --- WEAPON ----------- Wave Gun Quantum Rifle Quantum Rifle > --- INVENTORY -------- Improved Deuterium Engine Micro Antimatter Reactor Advanced Heat Sink Advanced Heat Sink High-capacity Storage Unit Improved Matter Compressor Improved Launcher Guidance Computer Advanced Target Analyzer Heavy Armor Plating Hardlight Generator Advanced Shield Generator Integrated Dissipator Plasma Rifle Heavy Beamcaster Long-range Proton Cannon Railgun Railgun Railgun Railgun Mass Driver Heavy Gauss Cannon Heavy Gauss Cannon Grenade Launcher Improved Grenade Launcher [Rating: 134] Favorites ----------- Power Reinforced Deuterium Engine Engine Reinforced Deuterium Engine Power Core Neutrino Core Reactor Heavy Antimatter Reactor Propulsion Light Treads Treads Light Treads Leg Carbon-fiber Leg Wheel Wheel Utility Improved Heat Sink Device Improved Heat Sink Storage Huge Storage Unit Processor Improved Signal Interpreter Hackware Advanced System Shield Protection Improved Light Armor Plating Weapon Advanced Plasma Cannon Energy Gun Field Laser Energy Cannon Advanced Plasma Cannon Ballistic Gun Heavy Machine Gun Ballistic Cannon Mini Assault Cannon Launcher Grenade Launcher Build | -11 -10 -9 -9 -8 -7 -6 -6 -6 -6 -5 -5 -4 -4 -4 -4 -3 -3 ------- Run | Jun Mat Mat Min Mat Fac Fac Low Low Dat Pro Fac Fac Upp Upp Zhi Pro Res Slots Evolved 14 | . . 2 . 2 2 2 . . . . 2 2 . . . . 2 Power 1 | . . . . . . 1 . . . . . . . . . . . Propulsion 5 | . . 1 . . 1 . . . . . 1 1 . . . . 1 Utility 7 | . . 1 . 2 1 1 . . . . . 1 . . . . 1 Weapon 1 | . . . . . . . . . . . 1 . . . . . . Parts Attached 229 | 7 16 28 1 22 34 4 8 1 . 3 15 9 16 . 5 18 42 Power 19 | 1 1 1 . 1 4 1 . . . . 1 3 1 . 2 . 3 Engine 11 | 1 1 1 . 1 4 1 . . . . . 1 . . . . 1 Core 5 | . . . . . . . . . . . 1 2 1 . 1 . . Reactor 3 | . . . . . . . . . . . . . . . 1 . 2 Propulsion 52 | 3 6 7 . 1 8 1 3 . . 2 7 2 1 . . 4 7 Treads 26 | 1 . 6 . 1 8 1 3 . . 2 2 . 1 . . . 1 Leg 24 | . 6 1 . . . . . . . . 5 2 . . . 4 6 Wheel 2 | 2 . . . . . . . . . . . . . . . . . Hover . | . . . . . . . . . . . . . . . . . . Flight . | . . . . . . . . . . . . . . . . . . Utility 72 | 1 5 6 . 9 15 2 5 . . 1 3 2 7 . 3 3 10 Device 37 | . 2 1 . 5 7 1 2 . . 1 2 1 4 . 1 1 9 Storage 6 | 1 1 2 . . 1 . . . . . . . 1 . . . . Processor 4 | . . . . . 1 . 1 . . . . 1 1 . . . . Hackware 1 | . . . . . . . . . . . . . . . 1 . . Protection 24 | . 2 3 . 4 6 1 2 . . . 1 . 1 . 1 2 1 Artifact . | . . . . . . . . . . . . . . . . . . Weapon 86 | 2 4 14 1 11 7 . . 1 . . 4 2 7 . . 11 22 Energy Gun 43 | 2 3 8 . 8 4 . . . . . 1 . 4 . . 5 8 Energy Cannon 12 | . . 5 . . 3 . . 1 . . 1 1 . . . . 1 Ballistic Gun 14 | . 1 . . 2 . . . . . . . 1 1 . . 1 8 Ballistic Cannon 7 | . . 1 . 1 . . . . . . 1 . . . . 1 3 Launcher 10 | . . . 1 . . . . . . . 1 . 2 . . 4 2 Special Weapon . | . . . . . . . . . . . . . . . . . . Impact Weapon . | . . . . . . . . . . . . . . . . . . Slashing Weapon . | . . . . . . . . . . . . . . . . . . Piercing Weapon . | . . . . . . . . . . . . . . . . . . Special Melee Weapon . | . . . . . . . . . . . . . . . . . . Unidentified Prototypes 12 | . . 2 . 2 . . . . . . 2 1 1 . 3 . 1 Parts Lost 75 | . 2 . . 3 4 . 4 . . 3 4 . 4 . . 9 42 Power 5 | . 1 . . . . . . . . . . . . . . . 4 Propulsion 23 | . . . . . 2 . 1 . . 2 2 . 2 . . 2 12 Utility 27 | . 1 . . 3 1 . 3 . . 1 2 . 2 . . 3 11 Weapon 20 | . . . . . 1 . . . . . . . . . . 4 15 Highest Loss Streak 31 | . 1 . . 2 1 . 4 . . 3 3 . 3 . . 8 31 To Critical Strikes 2 | . . . . . . . . . . . . . 1 . . . 1 Average Slot Usage (%) 98 | . 99 99 100 98 99 99 98 100 100 100 96 99 99 94 93 95 84 Engine 6 | . 14 11 11 9 7 13 13 13 13 13 6 . . . . . . Core 2 | . . . . . . . . . . . 3 9 10 10 8 5 1 Treads 18 | . 1 24 33 27 29 26 25 26 26 26 20 . 4 5 5 3 2 Leg 10 | . 25 8 . . . . . . . . 7 30 26 21 21 25 23 Device 18 | . 11 11 11 18 16 22 22 20 20 25 20 21 23 26 24 17 21 Storage 7 | . 14 11 11 9 7 6 6 6 6 6 5 5 5 5 5 5 4 Processor 3 | . . . . . 7 3 2 6 6 6 5 5 5 5 5 5 1 Protection 10 | . 2 10 11 16 13 12 13 13 13 6 7 10 7 5 5 6 4 Energy Gun 8 | . 26 19 13 14 4 6 6 5 . . . . 4 10 10 5 8 Energy Cannon 4 | . . 2 . . 10 6 6 6 13 13 11 6 2 . . . . Ballistic Gun 1 | . . . . 2 . . . . . . . 3 5 5 5 3 3 Naked Turns . | . . . . . . . . . . . . . . . . . . Heaviest Build 166 | 13 20 42 42 54 147 135 135 134 134 137 159 162 151 136 138 154 166 Greatest Support 130 | 20 20 69 69 69 86 82 82 82 82 82 100 105 105 75 75 120 130 Greatest Overweight (x) 10 | 1 1 1 . . 2 1 2 1 1 1 10 1 1 1 1 1 3 Average Overweight (x) . | . . . . . . 1 1 1 1 1 1 1 1 1 1 1 1 Largest Inventory Capacity 25 | 8 10 15 15 15 25 25 25 25 25 25 25 25 25 25 25 25 25 Average Capacity 21 | 7 9 14 15 15 23 25 25 25 25 25 25 25 25 25 25 25 25 Most Carried 25 | 7 10 15 15 15 25 25 25 25 25 25 25 25 25 25 25 25 25 Average Carried 20 | 3 9 14 15 14 22 24 22 23 25 22 23 24 24 25 24 22 21 Final Capacity 25 | 8 10 15 15 15 25 25 25 25 25 25 25 25 25 25 25 25 25 Final Carried 25 | 6 10 15 15 15 25 25 20 25 25 22 25 25 25 25 25 16 8 Class Distribution -------------------- 39% | Mutant 37% | Scavenger-Mutant 17% | Scavenger-Gunner 4% | Scavenger-Tank Dominant Class ---------------- Mutant | -10/Materials Mutant | -9/Materials Mutant | -9/Mines Mutant | -8/Materials Mutant | -7/Factory Scavenger-Mutant | -6/Factory Scavenger-Mutant | -6/Lower Caves Scavenger-Mutant | -6/Lower Caves Scavenger-Mutant | -6/Data Miner Scavenger-Mutant | -5/Proximity Caves Scavenger-Mutant | -5/Factory Scavenger-Mutant | -4/Factory Scavenger-Gunner | -4/Upper Caves Scavenger-Gunner | -4/Upper Caves Scavenger-Gunner | -4/Zhirov Scavenger-Gunner | -3/Proximity Caves Scavenger-Tank | -3/Research Resources | -11 -10 -9 -9 -8 -7 -6 -6 -6 -6 -5 -5 -4 -4 -4 -4 -3 -3 ----------- Run | Jun Mat Mat Min Mat Fac Fac Low Low Dat Pro Fac Fac Upp Upp Zhi Pro Res Matter Collected 3583 | 219 292 270 45 366 378 50 65 42 . 32 190 110 309 63 . 386 766 Remotely . | . . . . . . . . . . . . . . . . . . Salvage Created 7094 | . 451 388 60 1435 1625 92 337 . . 229 324 348 190 . . 491 1124 Parts 360 | . 29 15 17 75 82 4 6 . . 10 14 12 6 . . 22 68 Haulers Intercepted . | . . . . . . . . . . . . . . . . . . Recyclers Shooed 17 | . 1 1 . 3 10 . . . . . . 1 . . . . 1 Parts Field Recycled . | . . . . . . . . . . . . . . . . . . Retrieved Matter . | . . . . . . . . . . . . . . . . . . Parts Self-Destructed 48 | . . . . . . . 6 . . 18 . . 5 . . 19 . Prevented 4 | . . . . . . . . . . 4 . . . . . . . Kills | -11 -10 -9 -9 -8 -7 -6 -6 -6 -6 -5 -5 -4 -4 -4 -4 -3 -3 ------- Run | Jun Mat Mat Min Mat Fac Fac Low Low Dat Pro Fac Fac Upp Upp Zhi Pro Res Combat Hostiles Destroyed 141 | . 16 6 7 24 27 1 6 . . 3 7 4 8 . . 13 19 Guns 66 | . 15 4 4 24 . . 1 . . . . . 2 . . 4 12 Cannons 40 | . . 2 . . 21 . 3 . . 2 5 3 1 . . . 3 AOE 27 | . . . 3 . 3 . . . . . 2 1 5 . . 9 4 Classes Destroyed 17 | . 3 2 1 1 5 . 1 . . . . . . . . 1 3 Worker 14 | . 2 2 . 1 9 . . . . . . . . . . . . Builder 3 | . . . . 1 2 . . . . . . . . . . . . Tunneler 2 | . . . 1 . . . . . . . . . . . . . 1 Recycler 10 | . . 1 . 5 2 . . . . . . 1 . . . . 1 Operator 3 | . . . . . 2 1 . . . . . . . . . . . Watcher 3 | . . . . . 2 . . . . . 1 . . . . . . Swarmer 45 | . 9 . 7 6 3 . 1 . . . . . 5 . . 9 5 Saboteur 1 | . . . . . . . . . . . . . . . . . 1 Grunt 47 | . 7 2 . 13 12 . . . . . 6 . . . . 2 5 Brawler 3 | . . . . . 2 . 1 . . . . . . . . . . Duelist 3 | . . . . . . . 2 . . . 1 . . . . . . Sentry 18 | . . 4 . 5 4 1 1 . . . . 1 1 . . . 1 Specialist 1 | . . . . . . . . . . . . . . . . . 1 Hunter 7 | . . . . . 2 . . . . . . 2 2 . . . 1 Programmer 14 | . . . . . 4 . 1 . . 3 . 1 . . . 1 4 Behemoth 1 | . . . . . . . . . . . . . . . . 1 . Striker 1 | . . . . . . . . . . . . . . . . . 1 Best Kill Streak 8 | . 7 2 5 5 8 1 2 . . 2 4 3 5 . . 3 6 Combat Bots Only 5 | . 5 1 4 3 3 1 2 . . 2 4 2 5 . . 3 5 Max Kills in Single Turn 7 | . 2 1 4 2 7 1 1 . . 1 2 1 3 . . 2 3 Gunslinging 1 | . 1 . . 1 . . . . . . . . . . . . . Exploded 3 | . . . 2 . 2 . . . . . 2 1 3 . . 2 3 Melee . | . . . . . . . . . . . . . . . . . . Uniques/NPCs Destroyed . | . . . . . . . . . . . . . . . . . . Combat | -11 -10 -9 -9 -8 -7 -6 -6 -6 -6 -5 -5 -4 -4 -4 -4 -3 -3 -------- Run | Jun Mat Mat Min Mat Fac Fac Low Low Dat Pro Fac Fac Upp Upp Zhi Pro Res Damage Taken 14593 | . 687 164 60 1303 1727 59 1062 . . 460 263 383 897 . . 1325 6203 Core 2052 | . 142 40 3 110 111 . 102 . . . . 36 122 . . 74 1312 Absorbed by Shields 1030 | . . . . . 16 . . . . . . . 193 . . 477 344 Redirected to Shielding 428 | . . . . 66 58 . 73 . . 36 . . . . . 195 . Regen/Repaired (Parts) 40 | . . 40 . . . . . . . . . . . . . . . Core Remaining (%) 82 | 100 43 . 89 80 84 . . . . 88 100 . . . . 72 . Volleys Fired 413 | . 47 20 6 86 87 9 21 . . 7 10 19 19 . . 24 58 Largest 3 | . 2 2 2 2 2 2 2 . . 2 3 2 3 . . 3 3 Hottest 282 | . 100 150 93 126 196 161 161 . . 178 218 138 218 . . 269 282 Shots Fired 851 | . 94 39 9 172 160 18 43 1 . 16 28 21 49 . . 65 136 Gun 568 | . 94 29 6 172 40 9 21 1 . . . 2 25 . . 45 124 Cannon 253 | . . 10 . . 120 9 22 . . 16 27 19 18 . . 2 10 Launcher 30 | . . . 3 . . . . . . . 1 . 6 . . 18 2 Special . | . . . . . . . . . . . . . . . . . . Kinetic 163 | . 4 . . 40 . . . . . . 7 4 32 . . 17 59 Thermal 658 | . 90 39 6 132 160 18 43 1 . 16 20 17 11 . . 30 75 Explosive 30 | . . . 3 . . . . . . . 1 . 6 . . 18 2 Electromagnetic . | . . . . . . . . . . . . . . . . . . Robot Hit Streak 32 | . 7 8 5 20 11 5 11 . . 6 18 19 11 . . 23 32 Robot Miss Streak 5 | . 4 3 2 3 4 2 5 . . 1 1 1 2 . . 1 2 Penetration Max 2 | . . . . . . . . . . . . . . . . . 2 Secondary Targets 15 | . 9 . . 5 . . . . . . . . . . . 1 . Max Gunslinging Chain 1 | . 1 . . 1 . . . . . . . . . . . 1 . Shots Hit Robots 585 | . 58 25 4 123 97 12 30 . . 13 24 15 31 . . 48 105 Core Hits 286 | . 25 15 9 53 40 3 9 . . 3 15 9 23 . . 31 51 Critical Kills 4 | . . . . . 3 1 . . . . . . . . . . . Critical Parts Destroyed 1 | . . . . . . . . . . . . . . . . 1 . Critical Strikes 31 | . 9 1 1 2 4 1 2 . . . . . . . . 3 8 Burn 19 | . 9 1 1 2 1 . 2 . . . . . . . . . 3 Meltdown 4 | . . . . . 3 1 . . . . . . . . . . . Destroy 3 | . . . . . . . . . . . . . . . . 3 . Blast 5 | . . . . . . . . . . . . . . . . . 5 Melee Attacks . | . . . . . . . . . . . . . . . . . . Impact . | . . . . . . . . . . . . . . . . . . Slashing . | . . . . . . . . . . . . . . . . . . Piercing . | . . . . . . . . . . . . . . . . . . Sneak Attacks . | . . . . . . . . . . . . . . . . . . Combat Hostiles . | . . . . . . . . . . . . . . . . . . Follow-up Attacks . | . . . . . . . . . . . . . . . . . . Damage Inflicted 18253 | . 760 440 310 2058 5008 385 765 . . 448 926 751 1059 . . 1848 3495 Guns 8269 | . 760 313 73 2047 418 77 262 . . . . 44 439 . . 1074 2762 Cannons 5898 | . . 125 . . 2685 308 503 . . 448 679 484 262 . . . 404 Explosions 3946 | . . . 225 . 1866 . . . . . 217 220 358 . . 774 286 Melee . | . . . . . . . . . . . . . . . . . . Ramming 140 | . . 2 12 11 39 . . . . . 30 3 . . . . 43 Kinetic 2979 | . 10 . . 490 . . . . . . 138 63 420 . . 284 1574 Thermal 12299 | . 750 438 73 1557 4022 385 765 . . 448 541 657 281 . . 790 1592 Explosive 2807 | . . . 225 . 947 . . . . . 217 . 358 . . 774 286 Electromagnetic 28 | . . . . . . . . . . . . 28 . . . . . Impact . | . . . . . . . . . . . . . . . . . . Slashing . | . . . . . . . . . . . . . . . . . . Piercing . | . . . . . . . . . . . . . . . . . . Highest Corruption 6 | . 1 . . . 2 1 2 2 2 4 . . . . . 1 6 Average Corruption 1 | . 1 . . . 1 1 1 2 2 3 . . . . . 1 1 Corruption Purged . | . . . . . . . . . . . . . . . . . . Corruption Blocked . | . . . . . . . . . . . . . . . . . . Effects 93 | . 1 . . . 35 . 11 14 3 21 . . . . . 8 . Message Errors 27 | . . . . . 10 . 2 3 1 7 . . . . . 4 . Matter Fused 18 | . . . . . 10 . 1 4 1 2 . . . . . . . Heat Flow Errors 8 | . . . . . 2 . 2 2 . 2 . . . . . . . Energy Discharges 17 | . . . . . 8 . 3 2 . 2 . . . . . 2 . Parts Rejected 1 | . . . . . . . 1 . . . . . . . . . . Parts Fused 1 | . . . . . . . . . . 1 . . . . . . . Data Loss (minor) 8 | . . . . . 2 . . 1 1 3 . . . . . 1 . Data Loss (major) 6 | . 1 . . . 1 . 1 . . 2 . . . . . 1 . Misfires 5 | . . . . . 1 . 1 1 . 2 . . . . . . . Alerts 2 | . . . . . 1 . . 1 . . . . . . . . . Overload Shots . | . . . . . . . . . . . . . . . . . . Overflow Damage 872 | . . . . . 594 83 24 . . 56 23 63 20 . . 9 . Projectiles 254 | . . . . . 57 83 24 . . 56 23 11 . . . . . Explosions 618 | . . . . . 537 . . . . . . 52 20 . . 9 . Melee . | . . . . . . . . . . . . . . . . . . Knockbacks 5 | . . . . . . . . . . . 1 . 1 . . . 3 Impact 1 | . . . . . . . . . . . 1 . . . . . . Kinetic 4 | . . . . . . . . . . . . . 1 . . . 3 Secondary . | . . . . . . . . . . . . . . . . . . Self-Inflicted Damage 150 | . . . 9 . 88 . . . . . . . . . . 53 . Shots 3 | . . . 1 . 1 . . . . . . . . . . 1 . Rammed 10 | . . 1 2 2 4 . . . . . 1 . . . . . . Targets Rammed 17 | . . 1 2 2 4 . . . . . 1 1 . . . . 6 Kicked 7 | . . . . . . . . . . . . 1 . . . . 6 Crushed . | . . . . . . . . . . . . . . . . . . Highest Temperature 568 | . 568 198 . 304 254 150 328 217 . 197 394 42 199 . . 194 441 Average Temperature 108 | . 147 57 . 101 103 61 116 91 . 75 157 18 75 . . 91 142 Received Heat Transfer 2618 | . 204 51 . 711 669 . 36 . . . 144 18 12 . . 104 669 Effects 15 | . 8 . . . . . . . . . 4 . . . . . 3 Shutdowns 3 | . 3 . . . . . . . . . . . . . . . . Energy Bleed 2 | . . . . . . . . . . . 2 . . . . . . Interference 3 | . . . . . . . . . . . 1 . . . . . 2 Matter Decay 2 | . 1 . . . . . . . . . . . . . . . 1 Short Circuit 1 | . . . . . . . . . . . 1 . . . . . . Damage (minor) 2 | . 2 . . . . . . . . . . . . . . . . Damage (major) 1 | . 1 . . . . . . . . . . . . . . . . Damage (core) 1 | . 1 . . . . . . . . . . . . . . . . Siege Activations . | . . . . . . . . . . . . . . . . . . Robots Corrupted . | . . . . . . . . . . . . . . . . . . Combat Hostiles . | . . . . . . . . . . . . . . . . . . Parts Fried . | . . . . . . . . . . . . . . . . . . Impact Corruptions . | . . . . . . . . . . . . . . . . . . Robots Melted 9 | . 1 . . . 4 1 2 . . 1 . . . . . . . Combat Hostiles 8 | . 1 . . . 3 1 2 . . 1 . . . . . . . Parts Melted 47 | . 6 2 1 3 14 2 5 . . 3 3 . 1 . . 2 5 Heat Transferred 20151 | . 2837 1012 222 3515 5562 548 1453 . . 650 809 100 222 . . 999 2222 Parts Sabotaged 1 | . . . . . . . . . . . . . . . . . 1 Parts Stolen . | . . . . . . . . . . . . . . . . . . Parts Stripped . | . . . . . . . . . . . . . . . . . . Power Chain Reactions 2 | . . . . . . . . . . . . 2 . . . . . Missiles Intercepted . | . . . . . . . . . . . . . . . . . . Alert | -11 -10 -9 -9 -8 -7 -6 -6 -6 -6 -5 -5 -4 -4 -4 -4 -3 -3 ------- Run | Jun Mat Mat Min Mat Fac Fac Low Low Dat Pro Fac Fac Upp Upp Zhi Pro Res Peak Influence 1034 | . 429 239 142 352 1034 551 . . . . 167 260 . . . . 189 Initial 506 | . . 102 40 31 137 506 . . . . 3 72 . . . . 57 Average 257 | . 213 130 83 152 511 460 . . . . 90 94 . . . . 114 Maximum Alert Level 3 | . 2 1 . 1 3 2 . . . . . 1 . . . . . Low Security (%) 62 | 100 25 87 100 69 32 . . . . . 100 93 . . . . 100 Level 1 15 | . 72 12 . 30 8 13 . . . . . 6 . . . . . Level 2 10 | . 2 . . . 21 86 . . . . . . . . . . . Level 3 11 | . . . . . 37 . . . . . . . . . . . . Level 4 . | . . . . . . . . . . . . . . . . . . Level 5 . | . . . . . . . . . . . . . . . . . . High Security . | . . . . . . . . . . . . . . . . . . Max Security . | . . . . . . . . . . . . . . . . . . Squads Dispatched 23 | . 3 2 . 2 9 1 . . . . . 1 . . . . 5 Investigation 4 | . 2 1 . 1 . . . . . . . . . . . . . Extermination 7 | . . . . . 4 1 . . . . . 1 . . . . 1 Reinforcement 7 | . 1 1 . 1 2 . . . . . . . . . . . 2 Assault 2 | . . . . . 2 . . . . . . . . . . . . Garrison 3 | . . . . . 1 . . . . . . . . . . . 2 Intercept . | . . . . . . . . . . . . . . . . . . Searches Triggered . | . . . . . . . . . . . . . . . . . . Data Miner Redirects 2 | . . . . . . . . . . . . . . . . . 2 Construction Impeded 2 | . . . . . 1 . . . . . . . . . . . 1 Haulers Reinforced . | . . . . . . . . . . . . . . . . . . Active Scanning Responses . | . . . . . . . . . . . . . . . . . . Cargo Convoy Interrupts 1 | . . . . . . . . . . . . . . . . . 1 Stealth | -11 -10 -9 -9 -8 -7 -6 -6 -6 -6 -5 -5 -4 -4 -4 -4 -3 -3 --------- Run | Jun Mat Mat Min Mat Fac Fac Low Low Dat Pro Fac Fac Upp Upp Zhi Pro Res Distress Signals 10 | . 1 4 . 2 2 . . . . . . . . . . . 1 Communications Jammed . | . . . . . . . . . . . . . . . . . . Distress Signals . | . . . . . . . . . . . . . . . . . . Times Spotted 221 | . 24 19 5 40 39 3 6 . . 4 10 7 6 . . 14 44 Peak Tracking Total 18 | . 6 4 4 5 5 2 5 . . 2 6 2 5 . . 3 18 Tactical Retreats 10 | . . 1 . 4 1 1 . . . . . . . . . 1 2 Traps | -11 -10 -9 -9 -8 -7 -6 -6 -6 -6 -5 -5 -4 -4 -4 -4 -3 -3 ------- Run | Jun Mat Mat Min Mat Fac Fac Low Low Dat Pro Fac Fac Upp Upp Zhi Pro Res Traps Triggered 5 | . 3 . . 1 1 . . . . . . . . . . . . Indirectly . | . . . . . . . . . . . . . . . . . . Trap Hack Attempts . | . . . . . . . . . . . . . . . . . . Triggered . | . . . . . . . . . . . . . . . . . . Disarmed . | . . . . . . . . . . . . . . . . . . Reprogrammed 6 | . . . . . 6 . . . . . . . . . . . . Reused . | . . . . . . . . . . . . . . . . . . Traps Extracted . | . . . . . . . . . . . . . . . . . . Installed . | . . . . . . . . . . . . . . . . . . Triggered 2 | . . . . . . . . . . 2 . . . . . . . Machines | -11 -10 -9 -9 -8 -7 -6 -6 -6 -6 -5 -5 -4 -4 -4 -4 -3 -3 ---------- Run | Jun Mat Mat Min Mat Fac Fac Low Low Dat Pro Fac Fac Upp Upp Zhi Pro Res Machines Disabled 31 | . . 1 . . 26 . . . . . 2 2 . . . . . Max in Single Turn 8 | . . 1 . . 8 . . . . . . 2 . . . . . Garrison Access 1 | . . . . . 1 . . . . . . . . . . . . Machines Repaired . | . . . . . . . . . . . . . . . . . . Machines Sabotaged . | . . . . . . . . . . . . . . . . . . Overloaded Fab Kills . | . . . . . . . . . . . . . . . . . . Hacking | -11 -10 -9 -9 -8 -7 -6 -6 -6 -6 -5 -5 -4 -4 -4 -4 -3 -3 --------- Run | Jun Mat Mat Min Mat Fac Fac Low Low Dat Pro Fac Fac Upp Upp Zhi Pro Res Machines Accessed 33 | . 5 6 . 4 3 1 . 1 4 . . . . . 9 . . Terminals 15 | . 4 5 . 3 2 1 . . . . . . . . . . . Fabricators 1 | . . . . . 1 . . . . . . . . . . . . Repair Stations 3 | . 1 1 . 1 . . . . . . . . . . . . . Recycling Units . | . . . . . . . . . . . . . . . . . . Scanalyzers . | . . . . . . . . . . . . . . . . . . Garrison Access . | . . . . . . . . . . . . . . . . . . Total Hacks 116 | . 14 10 . 7 6 2 . 1 28 . . . . . 48 . . Successful 90 | . 3 4 . 2 3 1 . 1 28 . . . . . 48 . . Failed 26 | . 11 6 . 5 3 1 . . . . . . . . . . . Catastrophic 7 | . 1 3 . 2 1 . . . . . . . . . . . . Database Lockouts . | . . . . . . . . . . . . . . . . . . Manual 9 | . 5 3 . . 1 . . . . . . . . . . . . Terminals 30 | . 12 7 . 6 3 2 . . . . . . . . . . . Fabricators 3 | . . . . . 3 . . . . . . . . . . . . Repair Stations 6 | . 2 3 . 1 . . . . . . . . . . . . . Recycling Units . | . . . . . . . . . . . . . . . . . . Scanalyzers . | . . . . . . . . . . . . . . . . . . Garrison Access . | . . . . . . . . . . . . . . . . . . Terminal Hacks 87 | . 3 2 . 2 2 1 . 1 28 . . . . . 48 . . Record 45 | . . . . . . . . . 9 . . . . . 36 . . Part Schematic 17 | . . . . . . . . . 13 . . . . . 4 . . Robot Schematic 6 | . . . . . . . . . 6 . . . . . . . . Robot Analysis 6 | . 1 . . . 1 . . . . . . . . . 4 . . Prototype ID Bank 4 | . . . . . . . . . . . . . . . 4 . . Open Door 1 | . . . . . . . . 1 . . . . . . . . . Branch Access Points 1 | . 1 . . . . . . . . . . . . . . . . Alert Level 2 | . 1 . . 1 . . . . . . . . . . . . . Unreport Threat 1 | . . . . . . 1 . . . . . . . . . . . Locate Traps 3 | . . 2 . 1 . . . . . . . . . . . . . Reprogram Traps 1 | . . . . . 1 . . . . . . . . . . . . Fabricator Hacks 1 | . . . . . 1 . . . . . . . . . . . . Build 1 | . . . . . 1 . . . . . . . . . . . . Repair Station Hacks 2 | . . 2 . . . . . . . . . . . . . . . Scan Component 1 | . . 1 . . . . . . . . . . . . . . . Repair 1 | . . 1 . . . . . . . . . . . . . . . Recycling Unit Hacks . | . . . . . . . . . . . . . . . . . . Scanalyzer . | . . . . . . . . . . . . . . . . . . Garrison Access Hacks . | . . . . . . . . . . . . . . . . . . Unauthorized Hacks . | . . . . . . . . . . . . . . . . . . Terminals . | . . . . . . . . . . . . . . . . . . Fabricators . | . . . . . . . . . . . . . . . . . . Repair Stations . | . . . . . . . . . . . . . . . . . . Recycling Units . | . . . . . . . . . . . . . . . . . . Scanalyzers . | . . . . . . . . . . . . . . . . . . Garrison Access . | . . . . . . . . . . . . . . . . . . Data Cores Recovered 3 | . . . . . 2 1 . . . . . . . . . . . Used . | . . . . . . . . . . . . . . . . . . Hacking Detections 17 | . 5 5 . 3 3 1 . . . . . . . . . . . Full Trace Events 1 | . . 1 . . . . . . . . . . . . . . . Feedback Events . | . . . . . . . . . . . . . . . . . . Feedback Blocked . | . . . . . . . . . . . . . . . . . . Robot Schematics Acquired 6 | . . . . . . . . . 6 . . . . . . . . Robots Built . | . . . . . . . . . . . . . . . . . . Authchips . | . . . . . . . . . . . . . . . . . . Time . | . . . . . . . . . . . . . . . . . . Total Robot Build Rating . | . . . . . . . . . . . . . . . . . . Part Schematics Acquired 17 | . . . . . . . . . 13 . . . . . 4 . . Parts Built 2 | . . . . . 2 . . . . . . . . . . . . Authchips . | . . . . . . . . . . . . . . . . . . Time 106 | . . . . . 106 . . . . . . . . . . . . Total Part Build Rating 12 | . . . . . 12 . . . . . . . . . . . . Parts Repaired 1 | . . 1 . . . . . . . . . . . . . . . Time 26 | . . 26 . . . . . . . . . . . . . . . Parts Recycled . | . . . . . . . . . . . . . . . . . . Recycled Matter . | . . . . . . . . . . . . . . . . . . Retrieved Matter . | . . . . . . . . . . . . . . . . . . Retrieved Components . | . . . . . . . . . . . . . . . . . . Parts Scanalyzed . | . . . . . . . . . . . . . . . . . . Part Schematics Acquired . | . . . . . . . . . . . . . . . . . . Parts Damaged . | . . . . . . . . . . . . . . . . . . Bothacking | -11 -10 -9 -9 -8 -7 -6 -6 -6 -6 -5 -5 -4 -4 -4 -4 -3 -3 ------------ Run | Jun Mat Mat Min Mat Fac Fac Low Low Dat Pro Fac Fac Upp Upp Zhi Pro Res Used RIF Installer . | . . . . . . . . . . . . . . . . . . Robots Hacked . | . . . . . . . . . . . . . . . . . . Non-combat . | . . . . . . . . . . . . . . . . . . Combat . | . . . . . . . . . . . . . . . . . . Robot Hacks Applied . | . . . . . . . . . . . . . . . . . . Relay Couplers Released 2 | . . . . . 2 . . . . . . . . . . . . Machine Destruction 2 | . . . . . 2 . . . . . . . . . . . . Fabnet Peak Effective % . | . . . . . . . . . . . . . . . . . . Robots Rewired . | . . . . . . . . . . . . . . . . . . Allies Hacked . | . . . . . . . . . . . . . . . . . . Hacks Repelled . | . . . . . . . . . . . . . . . . . . Allies | -11 -10 -9 -9 -8 -7 -6 -6 -6 -6 -5 -5 -4 -4 -4 -4 -3 -3 -------- Run | Jun Mat Mat Min Mat Fac Fac Low Low Dat Pro Fac Fac Upp Upp Zhi Pro Res Total Allies 1 | . . . . . . . . . . 1 . . . . . . . Largest Group 1 | . . . . . . . . . . 1 1 . . . . . . Highest-Rated Group 96 | . . . . . . . . . . 96 96 . . . . . . Highest-Rated Ally 96 | . . . . . . . . . . 96 96 . . . . . . Total Orders . | . . . . . . . . . . . . . . . . . . Ally Attacks 16 | . . . . . . . . . . 2 14 . . . . . . Total Damage 890 | . . . . . . . . . . 53 837 . . . . . . Kills 4 | . . . . . . . . . . 1 3 . . . . . . Allies Corrupted . | . . . . . . . . . . . . . . . . . . Allies Melted 1 | . . . . . . . . . . . 1 . . . . . . Intel | -11 -10 -9 -9 -8 -7 -6 -6 -6 -6 -5 -5 -4 -4 -4 -4 -3 -3 ------- Run | Jun Mat Mat Min Mat Fac Fac Low Low Dat Pro Fac Fac Upp Upp Zhi Pro Res Robot Analysis Total 6 | . 1 . . . 1 . . . . . . . . . 4 . . Derelict Logs Recovered 7 | . . . 1 . . . 1 2 . 1 . . 1 1 . . . Drone Launches . | . . . . . . . . . . . . . . . . . . Drone Recoveries . | . . . . . . . . . . . . . . . . . . Exploration | -11 -10 -9 -9 -8 -7 -6 -6 -6 -6 -5 -5 -4 -4 -4 -4 -3 -3 ------------- Run | Jun Mat Mat Min Mat Fac Fac Low Low Dat Pro Fac Fac Upp Upp Zhi Pro Res Turns Passed 16617 | 58 788 1180 781 1700 3141 461 712 935 185 772 751 976 1127 673 430 1291 656 Spaces Moved 7497 | 41 499 606 476 774 1244 172 270 394 79 310 263 477 531 354 218 594 195 Core 2 | 2 . . . . . . . . . . . . . . . . . Treads 4352 | 6 . 434 476 774 1244 172 270 394 79 310 193 . . . . . . Legs 3064 | . 453 172 . . . . . . . . 70 477 531 354 218 594 195 Wheels 79 | 33 46 . . . . . . . . . . . . . . . . Hover . | . . . . . . . . . . . . . . . . . . Flight . | . . . . . . . . . . . . . . . . . . Fastest Speed 50 | 50 95 120 160 160 160 236 236 236 236 236 242 190 190 190 190 190 190 Average Speed 192 | 95 117 161 160 160 221 236 237 236 236 241 254 190 190 190 190 190 194 Slowest Speed 820 | 160 120 190 160 160 320 236 315 236 236 242 820 190 190 190 190 193 340 Overloaded Moves . | . . . . . . . . . . . . . . . . . . Propulsion Burnouts . | . . . . . . . . . . . . . . . . . . Robots Hopped . | . . . . . . . . . . . . . . . . . . Cave-ins Triggered . | . . . . . . . . . . . . . . . . . . Teleports 1 | . . . . . . . . . . . . . . . 1 . . Exploration Rate (%) 44 | 4 83 45 92 42 38 5 49 58 69 45 6 10 67 55 62 60 6 Regions Visited 17 Branch Regions 9 Pre-discovered Areas 7 | . . . 2 . . . . . 1 1 . . . . 3 . . Known Exits Taken 6 | . . . . . . . . . . 1 . 1 1 1 1 1 . Unknown Exits Taken 11 | 1 1 1 1 1 1 1 1 1 1 . 1 . . . . . . Scrap Searched 18 | . . . 1 . . . 3 4 . 3 . . 4 1 . 2 . Spaces Dug 15 | . . . . . . . . . . . . . . . . 15 . Terrain Destroyed 356 | . . 2 19 . 112 1 7 . . 2 4 45 43 . . 112 9 Melee . | . . . . . . . . . . . . . . . . . . Projectile 52 | . . 2 . . 26 1 7 . . 2 . 4 3 . . 5 2 AOE 303 | . . . 19 . 86 . . . . . 4 41 40 . . 107 6 Terrain Rammed . | . . . . . . . . . . . . . . . . . . Walls Destroyed . | . . . . . . . . . . . . . . . . . . Machines Disabled . | . . . . . . . . . . . . . . . . . . Actions | -11 -10 -9 -9 -8 -7 -6 -6 -6 -6 -5 -5 -4 -4 -4 -4 -3 -3 --------- Run | Jun Mat Mat Min Mat Fac Fac Low Low Dat Pro Fac Fac Upp Upp Zhi Pro Res Total 8871 | 57 608 773 485 1073 1471 210 300 400 78 319 322 524 607 355 234 704 351 Wait 461 | 2 29 71 1 161 34 22 1 . . . 16 . 31 . 3 61 29 Move 7480 | 40 498 605 475 773 1243 171 269 393 78 309 262 476 530 353 217 593 195 Hop . | . . . . . . . . . . . . . . . . . . Pick Up 129 | 7 7 21 . 11 31 2 1 5 . . 10 8 6 1 3 4 12 Fast Attach 64 | 5 3 6 . 8 12 1 . 1 . . 6 4 2 . 3 1 12 Attach 77 | 2 3 2 . 6 6 2 7 . . 3 7 2 5 . 1 9 22 Detach 11 | 1 2 1 . 2 . . . . . . 1 . . . . . 4 Swap 90 | . 10 20 1 8 16 1 1 . . . 2 3 9 . 2 8 9 Drop 127 | . 9 26 . 16 36 2 . 1 . . 7 11 5 1 5 4 4 Fire 413 | . 47 20 6 86 87 9 21 . . 7 10 19 19 . . 24 58 Melee . | . . . . . . . . . . . . . . . . . . Ram . | . . . . . . . . . . . . . . . . . . Kick 7 | . . . . . . . . . . . . 1 . . . . 6 Crush 10 | . . 1 2 2 4 . . . . . 1 . . . . . . Escape Stasis 2 | . . . . . 2 . . . . . . . . . . . . Rewire . | . . . . . . . . . . . . . . . . . . Trap . | . . . . . . . . . . . . . . . . . . Miscellaneous . | . . . . . . . . . . . . . . . . . . Route ------- -11/Junkyard -10/Materials (discovered 4 exits: *Mat x2 / *Min x2) -9/Materials (discovered 2 exits: *Mat / [*Min]) -9/Mines (discovered 2 exits: *Mat x2) -8/Materials -7/Factory -6/Factory -6/Lower Caves -6/Lower Caves -6/Data Miner -5/Proximity Caves -5/Factory -4/Factory -4/Upper Caves -4/Upper Caves (discovered 2 exits: *Res / *Zhi) -4/Zhirov -3/Proximity Caves -3/Research History --------- Turn | Location | Event 29 | -11/Junkyard | Discovered new exit (range 15) 59 | -11/Junkyard | Entered Materials 87 | -10/Materials | Identified exit to Mines 317 | -10/Materials | Build established: Mutant 419 | -10/Materials | Core integrity fell below 50% 602 | -10/Materials | Discovered new exit (range 16) 745 | -10/Materials | Discovered new exit (range 6) 847 | -10/Materials | Entered another Materials area 847 | -9/Materials | Evolved 2 slots: Propulsion x1, Utility x1 871 | -9/Materials | Discovered new exit (range 16) 1596 | -9/Materials | Repaired Lgt. Armor Plating 1733 | -9/Materials | Discovered new exit (range 8) 2027 | -9/Materials | Entered Mines 2129 | -9/Mines | Learned location of Storage (-8) 2263 | -9/Mines | Discovered new exit (range 8) 2340 | -9/Mines | Discovered new exit (range 5) 2808 | -9/Mines | Entered Materials 2808 | -8/Materials | Evolved 2 slots: Utility x2 4250 | -8/Materials | Discovered new exit (range 16) 4508 | -8/Materials | Entered Factory 4508 | -7/Factory | Evolved 2 slots: Propulsion x1, Utility x1 4948 | -7/Factory | Fabricated Adv. Plasma Cannon (x2) 5518 | -7/Factory | Garrison activated, responded to threat 6908 | -7/Factory | First assault squad dispatched 7138 | -7/Factory | Build established: Scavenger-Mutant 7602 | -7/Factory | Discovered new exit (range 7) 7649 | -7/Factory | Entered another Factory area 7649 | -6/Factory | Evolved 2 slots: Power x1, Utility x1 8075 | -6/Factory | Discovered new exit (range 8) 8110 | -6/Factory | Entered Lower Caves 8111 | -6/Lower Caves | Encountered a Warlord checkpoint 8149 | -6/Lower Caves | Learned location of 1 exit from Proximity Caves 8456 | -6/Lower Caves | Attracted the attention of an 0b10 outpost 8559 | -6/Lower Caves | Lost 4 parts (1n3u) 8798 | -6/Lower Caves | Discovered new exit (range 5) 8822 | -6/Lower Caves | Entered another Lower Caves area 9165 | -6/Lower Caves | Encountered a Warlord checkpoint 9252 | -6/Lower Caves | Learned Factory terminal intel 9602 | -6/Lower Caves | Learned Factory interactive machine intel 9745 | -6/Lower Caves | Discovered new exit (range 6) 9757 | -6/Lower Caves | Entered Data Miner 9757 | -6/Data Miner | Discovered new exit (range 6) 9802 | -6/Data Miner | Met Data Miner 9871 | -6/Data Miner | Learned location of Section 7 (-2) 9871 | -6/Data Miner | Acquired the access code to Warlord's prototype stash 9887 | -6/Data Miner | Received God Mode back door access code from Data Miner 9942 | -6/Data Miner | Entered Proximity Caves 9943 | -5/Proximity Caves | Identified exit to Factory 10003 | -5/Proximity Caves | Lost 3 parts (2n1u) 10194 | -5/Proximity Caves | Escorted by Enhanced Grunt 10370 | -5/Proximity Caves | Learned location of Armory (-4) 10714 | -5/Proximity Caves | Entered Factory 10714 | -5/Factory | Accompanied by 1 ally 10714 | -5/Factory | Evolved 2 slots: Propulsion x1, Weapon x1 10715 | -5/Factory | Loaded intel: 51 interactive machine locations 10716 | -5/Factory | Loaded intel: 25 terminal locations 11044 | -5/Factory | Discovered new exit (range 13) 11236 | -5/Factory | Lost 3 parts (2n1u) 11431 | -5/Factory | Build established: Scavenger-Gunner 11465 | -5/Factory | Entered another Factory area 11465 | -4/Factory | Evolved 2 slots: Propulsion x1, Utility x1 11766 | -4/Factory | Build established: Scavenger-Mutant 12306 | -4/Factory | Discovered new exit (range 12) 12331 | -4/Factory | Identified exit to Upper Caves 12441 | -4/Factory | Entered Upper Caves 12587 | -4/Upper Caves | Lost 3 parts (1n2u) 13229 | -4/Upper Caves | Attracted the attention of an 0b10 checkpoint 13309 | -4/Upper Caves | Build established: Scavenger-Gunner 13433 | -4/Upper Caves | Discovered new exit (range 10) 13525 | -4/Upper Caves | Identified exit to Upper Caves 13539 | -4/Upper Caves | Learned Research trap positions 13568 | -4/Upper Caves | Entered another Upper Caves area 13595 | -4/Upper Caves | Discovered new exit (range 3) 13597 | -4/Upper Caves | Identified exit to Research 13817 | -4/Upper Caves | Spotted B-86 Titan 14206 | -4/Upper Caves | Discovered new exit (range 7) 14239 | -4/Upper Caves | Identified exit to Zhirov 14241 | -4/Upper Caves | Entered Zhirov 14241 | -4/Zhirov | Discovered new exit (range 3) 14270 | -4/Zhirov | Identified exit to Proximity Caves 14300 | -4/Zhirov | Met Zhirov 14388 | -4/Zhirov | Found Alien Artifact 14389 | -4/Zhirov | Identified Transdimensional Reconstructor 14389 | -4/Zhirov | Warped through subspace 14472 | -4/Zhirov | Found Alien Artifact 14578 | -4/Zhirov | Learned location of Quarantine (-2) 14578 | -4/Zhirov | Learned location of Testing (-3) 14578 | -4/Zhirov | Learned location of Command (-1) 14619 | -4/Zhirov | Zhirov requested help retrieving the SGEMP Prototype 14671 | -4/Zhirov | Entered Proximity Caves 15165 | -3/Proximity Caves | Spotted B-86 Titan 15526 | -3/Proximity Caves | Destroyed B-86 Titan 15554 | -3/Proximity Caves | Lost 8 parts (2n3u3w) 15798 | -3/Proximity Caves | Build established: Scavenger-Tank 15890 | -3/Proximity Caves | Discovered exit to Research (range 10) 15962 | -3/Proximity Caves | Entered Research 15962 | -3/Research | Evolved 2 slots: Propulsion x1, Utility x1 15963 | -3/Research | Loaded intel: 78 trap records 15977 | -3/Research | Found Antimissile System 16074 | -3/Research | Garrison activated, responded to threat 16267 | -3/Research | Lost 6 parts (1p3n1u1w) 16409 | -3/Research | Lost 4 parts (1n2u1w) 16524 | -3/Research | Cargo convoy interrupted 16529 | -3/Research | Spotted Striker 16540 | -3/Research | Incoming assault squad redirected 16542 | -3/Research | Destroyed Striker 16573 | -3/Research | Incoming assault squad redirected 16577 | -3/Research | Spotted Executioner 16589 | -3/Research | Garrison activated, responded to threat 16601 | -3/Research | Identified Integrated Dissipator 16601 | -3/Research | Installed Integrated Dissipator, increased core heat dissipation (+20) 16607 | -3/Research | Core integrity fell below 50% 16615 | -3/Research | Core integrity fell below 20% 16618 | -3/Research | Destroyed by Y-72 Warden with Railgun Last Messages --------------- Slug penetrates Wall. Penetrated by Slug. U-05 Engineer builds a Wall. Wave Gun destroyed. Penetrated by Slug. Adv. Heat Sink destroyed. Penetrated by Slug. Slug penetrates Y-72 Warden. U-05 Engineer builds a Wall. P-80 Master resets Executioner, system corruption cleaned. P-80 Master destroyed. Slug penetrates Wall. Penetrated by Slug. Plasma Rifle destroyed. Penetrated by Slug. Slug penetrates Executioner. Penetrated by Slug. Slug penetrates Y-72 Warden. Penetrated by Slug. [Achievement: Just Browsing] Map ----- +----------------------------------------------------+ | ?????????????????????????????????????????????^???? | | ?????????????????????????????????????????????????? | | ?????????????????????????????????????????????????? | | ?????????????????????????????????????????????????? | | ?????????????????????????????????????????????????? | | ?????????????????????????????????????????????????? | | ?????????????????????????????????????????????????? | | ?????????????????????????????????????????????????? | | ?????????????????????????????????????????????????? | | ?????????????????????????????????????????????????? | | ?????????????????????????????????????????????????? | | ?????????????????????????????????????????????????? | | ???^?????????????? ?????????????????????????????? | | ?????????????????? ????????????????????????????? | | ??????????????????? ???###??????????????????????? | | ??????????????????? ?? ????#?????????????????? | | ???????????????????? ?? ???=#?????????????????? | | ???????????????????? #? ??? #?????????????????? | | ?????????????????????;;? ?? ??#??#????????????? | | ?????????????????????#;##"###g##"% ????????????? | | ??????????????????#### u Yg #???????????? | | ??????????????????? ! [ ???????????? | | ???????????????#######%u[ p ???????????? | | ???????????????# #/#Y#/#####?????????????????? | | ???????????????# #%%%%![ #?????????????????? | | ???????????????# #/=%@!= #?????????????????? | | ???????????????# #**%=%%= #?????????????????? | | ???????????????# #!!hgEg[ #?????????????????? | | ???????????## #####+#####/;##### ?????????? | | ???? g%/% ?????????? | | ???????????########+#####!!m #????????????????? | | ???????????# ^ #[!= #????????????????? | | ???????????# #! #????????????????? | | ???????????# ^ # #????????????????? | | ???????????# # g #????????????????? | | ???????????# ! # % +????????????????? | | ???????????# ^ # #### #????????????????? | | ???????????# # #???+#????????????????? | | ???????????# # +?????????????????????? | | ???????????# # ##?????????????????????? | | #########??# # ???????????????????????? | | #??# ^ # ???????????????????????? | | #??# # ???????????????????????? | | ##########+###### ##?????????????????????? | | # #?????????????????????? | | # #?????????????????????? | | # +?????????????????????? | | + #?????????????????????? | | # ###/###### #?????????????????????? | | #* #?# ???? #?????????????????????? | +----------------------------------------------------+ Best States ------------- Heat Dissipation 103 Coolant Potential 100 Energy Generation 49 Energy Capacity 815 Matter Stores 300 Matter Capacity 300 Sight Range 16 Robot Scan Range 15 Terrain Scan Density 110 EM Shielding 3 Armor Coverage 600 Resistance: KI 30 Propulsion Shielding 90 Utility Shielding 66 Weapon Shielding 66 Point Defense Rating 240 Phase Shifting 10 Evasion (%) 55 Targeting Accuracy 25 Recoil Reduction 5 Energy Filtering 30 Particle Charging 20 Defensive Hacking 14 Item Schematics ----------------- Combat Drone Bay | -6/Data Miner | Free Lgt. Regenerative Plating | -6/Data Miner | Free Exp. Cesium-ion Thruster | -6/Data Miner | Free Imp. Matter Compressor | -6/Data Miner | Free Hvy. Proton Missile Launcher | -6/Data Miner | Free Imp. Gyrokinetic Inverter | -6/Data Miner | Free Quantum Capacitor | -6/Data Miner | Free Hvy. Disruptor Cannon | -6/Data Miner | Free Hvy. Phase Cannon | -6/Data Miner | Free Dispersion Rifle | -6/Data Miner | Free Adv. Thermal Shield | -6/Data Miner | Free Imp. Remote Force Field | -6/Data Miner | Free Mic. Antimatter Reactor | -6/Data Miner | Free Assault Drone Bay | -4/Zhirov | Free Exp. Heat Sink | -4/Zhirov | Free Exp. Optical Array | -4/Zhirov | Free Imp. Arc Thrower | -4/Zhirov | Free Robot Schematics ------------------ A-15 Conveyor | -6/Data Miner | Free X-67 Chaingunner | -6/Data Miner | Free M-22 Extractor | -6/Data Miner | Free R-10 Processor | -6/Data Miner | Free A-27 Freighter | -6/Data Miner | Free M-36 Artificer | -6/Data Miner | Free Fabricated ------------ Adv. Plasma Cannon | x2 | -7/Factory | Preloaded Alien Tech Used ----------------- Transdimensional Reconstructor Integrated Dissipator Achievements -------------- Adventurer Alien Tech Just Browsing Oh No You Don't! Respectable Loadout Subspace Traveler Tank The Science Guy Challenges ------------ None Game ------ Seed GravmagGodField Manual? 0 Play Time 02:43:54 Cumulative 33.9 hours Start 2023.05.31 @ 09:41:47 End 2023.05.31 @ 12:56:49 Sessions 3 Manual Loads 0 Difficulty Rogue Special Mode None Game No. 29 Rogue 29 Adventurer 0 Explorer 0 Win Type - Total 0 Types 0/0/0/0/0/0/0/0/0 Lore% 14 Gallery% 27 Achievement% 23 Wizard Run 0 Options --------- ASCII 0 Keyboard 0 Movement Numpad Keybinds 0 Fullscreen 1 Font 18/SmallcapsGlow Map View 76x50 Tactical HUD 0 Map Filters NONE Filters NONE Steam 1 RUN: 8474d595-ad05-4487-9a0b-f93837bfd684